[Event "Titled Tuesday Blitz October 18 Late 2022"]
[White "Clawitter, Craig"]
[Black "Jimenez Almeida, Luis David"]
[WhiteFideId "2023105"]
[BlackFideId "22242244"]
[WhiteElo "2206"]
[BlackElo "2158"]
[Result "0-1"]
[Round "04"]
[TimeControl "180+1"]
[Date "2022.10.19"]
[WhiteClock "0:00:04"]
[BlackClock "0:00:08"]

1. e4 {[%clk 0:03:00]}  g6 {[%clk 0:02:58]} 2. d4 {[%clk 0:03:00]}  Bg7 {[%clk 0:02:58]} 3. Nc3 {[%clk 0:03:01]}  d6 {[%clk 0:02:58]} 4. Be3 {[%clk 0:03:02]}  Nd7 {[%clk 0:02:58]} 5. Nf3 {[%clk 0:03:01]}  a6 {[%clk 0:02:58]} 6. Qd2 {[%clk 0:02:57]}  b5 {[%clk 0:02:58]} 7. Bd3 {[%clk 0:02:56]}  e6 {[%clk 0:02:55]} 8. a4 {[%clk 0:02:53]}  b4 {[%clk 0:02:54]} 9. Ne2 {[%clk 0:02:52]}  Rb8 {[%clk 0:02:53]} 10. O-O {[%clk 0:02:42]}  Ne7 {[%clk 0:02:53]} 11. Bh6 {[%clk 0:02:40]}  O-O {[%clk 0:02:53]} 12. a5 {[%clk 0:02:34]}  c5 {[%clk 0:02:45]} 13. Rfd1 {[%clk 0:02:15]}  Bb7 {[%clk 0:02:37]} 14. Bxg7 {[%clk 0:02:10]}  Kxg7 {[%clk 0:02:37]} 15. Ng3 {[%clk 0:02:01]}  h6 {[%clk 0:02:27]} 16. h4 {[%clk 0:01:45]}  Qc7 {[%clk 0:02:01]} 17. c3 {[%clk 0:01:42]}  bxc3 {[%clk 0:01:56]} 18. Qxc3 {[%clk 0:01:34]}  Kh7 {[%clk 0:01:49]} 19. Rac1 {[%clk 0:01:28]}  Rfc8 {[%clk 0:01:44]} 20. h5 {[%clk 0:01:27]}  Qd8 {[%clk 0:01:36]} 21. hxg6+ {[%clk 0:01:20]}  Nxg6 {[%clk 0:01:37]} 22. Nh5 {[%clk 0:01:08]}  Nf6 {[%clk 0:01:28]} 23. Nxf6+ {[%clk 0:01:00]}  Qxf6 {[%clk 0:01:29]} 24. e5 {[%clk 0:01:00]}  Qf4 {[%clk 0:01:29]} 25. exd6 {[%clk 0:00:51]}  Bxf3 {[%clk 0:01:24]} 26. gxf3 {[%clk 0:00:43]}  cxd4 {[%clk 0:00:56]} 27. Qxc8 {[%clk 0:00:14]}  Rxc8 {[%clk 0:00:55]} 28. Rxc8 {[%clk 0:00:15]}  Qxd6 {[%clk 0:00:42]} 29. Rdc1 {[%clk 0:00:13]}  Kg7 {[%clk 0:00:41]} 30. R1c7 {[%clk 0:00:12]}  Nf4 {[%clk 0:00:34]} 31. Bf1 {[%clk 0:00:09]}  Qe5 {[%clk 0:00:29]} 32. Rd7 {[%clk 0:00:06]}  Qg5+ {[%clk 0:00:28]} 33. Kh2 {[%clk 0:00:03]}  Qh5+ {[%clk 0:00:22]} 34. Kg1 {[%clk 0:00:03]}  d3 {[%clk 0:00:19]} 35. Rcc7 {[%clk 0:00:03]}  Qg5+ {[%clk 0:00:14]} 36. Kh2 {[%clk 0:00:03]}  Qh4+ {[%clk 0:00:13]} 37. Kg1 {[%clk 0:00:02]}  Qg5+ {[%clk 0:00:12]} 38. Kh2 {[%clk 0:00:03]}  Qh5+ {[%clk 0:00:13]} 39. Kg1 {[%clk 0:00:02]}  Qg6+ {[%clk 0:00:12]} 40. Kh2 {[%clk 0:00:02]}  h5 {[%clk 0:00:08]} 41. Rxf7+ {[%clk 0:00:02]}  Qxf7 {[%clk 0:00:08]} 42. Rxf7+ {[%clk 0:00:02]}  Kxf7 {[%clk 0:00:09]} 43. Kg3 {[%clk 0:00:03]}  e5 {[%clk 0:00:08]} 44. Bxd3 {[%clk 0:00:01]}  Nxd3 {[%clk 0:00:08]} 45. Kh4 {[%clk 0:00:02]}  Kg6 {[%clk 0:00:06]} 46. Kg3 {[%clk 0:00:02]}  Nxb2 {[%clk 0:00:05]} 47. f4 {[%clk 0:00:03]}  e4 {[%clk 0:00:05]} 48. f3 {[%clk 0:00:03]}  e3 {[%clk 0:00:05]} 49. Kg2 {[%clk 0:00:03]}  Nc4 {[%clk 0:00:05]} 50. Kf1 {[%clk 0:00:03]}  Kf5 {[%clk 0:00:05]} 51. Ke2 {[%clk 0:00:04]}  Kxf4 {[%clk 0:00:06]} 52. Kd3 {[%clk 0:00:04]}  Kxf3 {[%clk 0:00:06]} 53. Kxc4 {[%clk 0:00:03]}  e2 {[%clk 0:00:07]} 54. Kd4 {[%clk 0:00:04]}  e1=Q {[%clk 0:00:08]} 0-1


[Site "https://www.chess.com"]

[Event "Titled Tuesday Blitz October 18 Late 2022"]
[White "D`Arruda, Ricardo D."]
[Black "Girsh, Daniel"]
[WhiteFideId "100692"]
[BlackFideId "30949190"]
[WhiteElo "2397"]
[BlackElo "2075"]
[Result "0-1"]
[Round "04"]
[TimeControl "180+1"]
[Date "2022.10.19"]
[WhiteClock "0:00:54"]
[BlackClock "0:02:29"]

1. c4 {[%clk 0:02:09]}  e6 {[%clk 0:02:58]} 2. d4 {[%clk 0:02:08]}  d5 {[%clk 0:02:58]} 3. Nf3 {[%clk 0:02:07]}  Nf6 {[%clk 0:02:59]} 4. Nc3 {[%clk 0:02:07]}  Bb4 {[%clk 0:02:59]} 5. e3 {[%clk 0:02:07]}  O-O {[%clk 0:02:59]} 6. Bd3 {[%clk 0:02:07]}  c5 {[%clk 0:02:59]} 7. O-O {[%clk 0:02:07]}  Nc6 {[%clk 0:02:56]} 8. a3 {[%clk 0:02:07]}  Bxc3 {[%clk 0:02:57]} 9. bxc3 {[%clk 0:02:08]}  dxc4 {[%clk 0:02:56]} 10. Bxc4 {[%clk 0:02:08]}  Qc7 {[%clk 0:02:56]} 11. Qe2 {[%clk 0:02:08]}  e5 {[%clk 0:02:56]} 12. d5 {[%clk 0:02:01]}  Na5 {[%clk 0:02:54]} 13. Ba2 {[%clk 0:02:00]}  e4 {[%clk 0:02:53]} 14. Nd2 {[%clk 0:01:58]}  Re8 {[%clk 0:02:47]} 15. c4 {[%clk 0:01:57]}  Ng4 {[%clk 0:02:44]} 16. g3 {[%clk 0:01:51]}  Bf5 {[%clk 0:02:44]} 17. Bb2 {[%clk 0:01:48]}  Ne5 {[%clk 0:02:42]} 18. Bc3 {[%clk 0:01:41]}  b6 {[%clk 0:02:37]} 19. Rab1 {[%clk 0:01:12]}  Nb7 {[%clk 0:02:36]} 20. Bb3 {[%clk 0:01:03]}  Qd7 {[%clk 0:02:35]} 21. Bc2 {[%clk 0:01:03]}  Bg4 {[%clk 0:02:33]} 22. Qe1 {[%clk 0:00:54]}  Nf3+ {[%clk 0:02:28]} 23. Nxf3 {[%clk 0:00:54]}  Bxf3 {[%clk 0:02:29]} 0-1


[Site "https://www.chess.com"]

[Event "Titled Tuesday Blitz October 18 Late 2022"]
[White "Deac, Bogdan-Daniel"]
[Black "Li, Ruifeng"]
[WhiteFideId "1226380"]
[BlackFideId "2061074"]
[WhiteElo "2648"]
[BlackElo "2441"]
[Result "0-1"]
[Round "04"]
[TimeControl "180+1"]
[Date "2022.10.18"]
[WhiteClock "0:00:01"]
[BlackClock "0:00:22"]

1. e4 {[%clk 0:03:00]}  d6 {[%clk 0:02:59]} 2. d4 {[%clk 0:03:00]}  Nf6 {[%clk 0:03:00]} 3. Nc3 {[%clk 0:03:01]}  Nc6 {[%clk 0:03:01]} 4. Nf3 {[%clk 0:03:00]}  g6 {[%clk 0:03:01]} 5. d5 {[%clk 0:02:58]}  Nb8 {[%clk 0:03:01]} 6. h3 {[%clk 0:02:58]}  Bg7 {[%clk 0:03:01]} 7. Bc4 {[%clk 0:02:59]}  O-O {[%clk 0:03:00]} 8. O-O {[%clk 0:02:59]}  c6 {[%clk 0:03:01]} 9. a4 {[%clk 0:02:58]}  b6 {[%clk 0:03:01]} 10. Qe2 {[%clk 0:02:49]}  Bb7 {[%clk 0:03:01]} 11. Rd1 {[%clk 0:02:49]}  Qc8 {[%clk 0:02:56]} 12. a5 {[%clk 0:02:45]}  bxa5 {[%clk 0:02:35]} 13. Rxa5 {[%clk 0:02:44]}  Nbd7 {[%clk 0:02:36]} 14. Be3 {[%clk 0:02:40]}  Nb6 {[%clk 0:02:30]} 15. dxc6 {[%clk 0:02:26]}  Bxc6 {[%clk 0:02:27]} 16. Bd3 {[%clk 0:02:22]}  Qb7 {[%clk 0:02:18]} 17. e5 {[%clk 0:01:19]}  Nfd5 {[%clk 0:01:33]} 18. Nxd5 {[%clk 0:01:08]}  Nxd5 {[%clk 0:01:33]} 19. Ba6 {[%clk 0:00:52]}  Qxb2 {[%clk 0:01:32]} 20. Raxd5 {[%clk 0:00:49]}  Bxd5 {[%clk 0:01:32]} 21. Rxd5 {[%clk 0:00:50]}  dxe5 {[%clk 0:01:31]} 22. Rd1 {[%clk 0:00:41]}  Rfd8 {[%clk 0:01:28]} 23. Rf1 {[%clk 0:00:37]}  h6 {[%clk 0:01:08]} 24. Qc4 {[%clk 0:00:22]}  e6 {[%clk 0:00:56]} 25. Qa4 {[%clk 0:00:19]}  Kh7 {[%clk 0:00:47]} 26. g3 {[%clk 0:00:18]}  f5 {[%clk 0:00:46]} 27. Bc4 {[%clk 0:00:16]}  e4 {[%clk 0:00:46]} 28. Nh4 {[%clk 0:00:16]}  Qf6 {[%clk 0:00:41]} 29. Rb1 {[%clk 0:00:07]}  e5 {[%clk 0:00:31]} 30. Rb7 {[%clk 0:00:04]}  f4 {[%clk 0:00:22]} 31. Rf7 {[%clk 0:00:03]}  Qg5 {[%clk 0:00:22]} 32. Bc5 {[%clk 0:00:01]}  e3 {[%clk 0:00:22]} 0-1


[Site "https://www.chess.com"]

[Event "Titled Tuesday Blitz October 18 Late 2022"]
[White "Domingo Nunez, Ruben"]
[Black "Besedes, Danilo"]
[WhiteFideId "22245570"]
[BlackFideId "946796"]
[WhiteElo "2406"]
[BlackElo "2352"]
[Result "0-1"]
[Round "04"]
[TimeControl "180+1"]
[Date "2022.10.19"]
[WhiteClock "0:00:01"]
[BlackClock "0:00:27"]

1. c4 {[%clk 0:03:00]}  e6 {[%clk 0:03:00]} 2. g3 {[%clk 0:03:00]}  Nf6 {[%clk 0:03:00]} 3. Bg2 {[%clk 0:03:00]}  d5 {[%clk 0:03:00]} 4. Nf3 {[%clk 0:03:00]}  Be7 {[%clk 0:02:58]} 5. O-O {[%clk 0:03:00]}  O-O {[%clk 0:02:51]} 6. b3 {[%clk 0:03:00]}  a5 {[%clk 0:02:51]} 7. Nc3 {[%clk 0:02:54]}  c6 {[%clk 0:02:43]} 8. e3 {[%clk 0:02:46]}  Nbd7 {[%clk 0:02:40]} 9. Qe2 {[%clk 0:02:43]}  b6 {[%clk 0:02:40]} 10. Bb2 {[%clk 0:02:43]}  Ba6 {[%clk 0:02:40]} 11. Rfd1 {[%clk 0:02:32]}  b5 {[%clk 0:02:19]} 12. cxb5 {[%clk 0:02:28]}  cxb5 {[%clk 0:02:20]} 13. Nxb5 {[%clk 0:02:15]}  Rb8 {[%clk 0:02:20]} 14. a4 {[%clk 0:02:15]}  Qb6 {[%clk 0:02:00]} 15. Bf1 {[%clk 0:01:50]}  Ne4 {[%clk 0:01:48]} 16. Rdc1 {[%clk 0:01:38]}  Ndc5 {[%clk 0:01:44]} 17. Be5 {[%clk 0:01:17]}  Nxb3 {[%clk 0:01:36]} 18. Bxb8 {[%clk 0:01:12]}  Rxb8 {[%clk 0:01:33]} 19. Ne5 {[%clk 0:01:07]}  Nxc1 {[%clk 0:01:28]} 20. Rxc1 {[%clk 0:01:08]}  Rc8 {[%clk 0:01:25]} 21. Qd1 {[%clk 0:00:29]}  f6 {[%clk 0:00:56]} 22. Rxc8+ {[%clk 0:00:26]}  Bxc8 {[%clk 0:00:56]} 23. Nf3 {[%clk 0:00:26]}  Bd7 {[%clk 0:00:53]} 24. Nfd4 {[%clk 0:00:23]}  Bb4 {[%clk 0:00:46]} 25. d3 {[%clk 0:00:22]}  Nc5 {[%clk 0:00:43]} 26. Qc2 {[%clk 0:00:07]}  e5 {[%clk 0:00:39]} 27. Nf3 {[%clk 0:00:06]}  Nxa4 {[%clk 0:00:37]} 28. Nc7 {[%clk 0:00:07]}  Nc3 {[%clk 0:00:31]} 29. Na8 {[%clk 0:00:02]}  Qb7 {[%clk 0:00:29]} 30. d4 {[%clk 0:00:01]}  e4 {[%clk 0:00:27]} 31. Nd2 {[%clk 0:00:01]}  Qxa8 {[%clk 0:00:27]} 0-1


[Site "https://www.chess.com"]

[Event "Titled Tuesday Blitz October 18 Late 2022"]
[White "Ekdyshman, Mikhail"]
[Black "Barria Zuniga, Daniel"]
[WhiteFideId "4149416"]
[BlackFideId "3400816"]
[WhiteElo "2164"]
[BlackElo "2414"]
[Result "0-1"]
[Round "04"]
[TimeControl "180+1"]
[Date "2022.10.19"]
[WhiteClock "0:00:03"]
[BlackClock "0:00:08"]

1. c4 {[%clk 0:02:59]}  g6 {[%clk 0:02:56]} 2. Nc3 {[%clk 0:02:59]}  Bg7 {[%clk 0:02:54]} 3. g3 {[%clk 0:02:59]}  e6 {[%clk 0:02:49]} 4. Bg2 {[%clk 0:02:55]}  Ne7 {[%clk 0:02:50]} 5. e4 {[%clk 0:02:52]}  c6 {[%clk 0:02:47]} 6. c5 {[%clk 0:02:36]}  b6 {[%clk 0:02:46]} 7. d4 {[%clk 0:02:35]}  bxc5 {[%clk 0:02:40]} 8. dxc5 {[%clk 0:02:36]}  Qa5 {[%clk 0:02:33]} 9. Be3 {[%clk 0:02:36]}  Na6 {[%clk 0:02:32]} 10. Bd4 {[%clk 0:02:25]}  e5 {[%clk 0:02:26]} 11. Be3 {[%clk 0:02:23]}  Nxc5 {[%clk 0:02:14]} 12. Ne2 {[%clk 0:02:14]}  Ba6 {[%clk 0:02:02]} 13. O-O {[%clk 0:02:09]}  Nd3 {[%clk 0:02:00]} 14. Qd2 {[%clk 0:02:05]}  O-O {[%clk 0:01:44]} 15. Bg5 {[%clk 0:01:58]}  f6 {[%clk 0:01:42]} 16. Be3 {[%clk 0:01:50]}  Rfb8 {[%clk 0:01:23]} 17. Rfd1 {[%clk 0:01:48]}  Rxb2 {[%clk 0:01:18]} 18. Nd5 {[%clk 0:01:26]}  Rxd2 {[%clk 0:01:16]} 19. Nxe7+ {[%clk 0:01:26]}  Kf7 {[%clk 0:01:15]} 20. Bxd2 {[%clk 0:01:26]}  Qc5 {[%clk 0:01:12]} 21. Be3 {[%clk 0:01:11]}  Qxe7 {[%clk 0:01:11]} 22. Nc3 {[%clk 0:01:08]}  Rb8 {[%clk 0:01:06]} 23. Bf1 {[%clk 0:01:07]}  Nb4 {[%clk 0:01:03]} 24. Bh3 {[%clk 0:01:03]}  d5 {[%clk 0:00:51]} 25. exd5 {[%clk 0:01:01]}  cxd5 {[%clk 0:00:52]} 26. a3 {[%clk 0:00:54]}  Nd3 {[%clk 0:00:49]} 27. Nxd5 {[%clk 0:00:54]}  Qf8 {[%clk 0:00:35]} 28. Bf1 {[%clk 0:00:35]}  e4 {[%clk 0:00:33]} 29. f3 {[%clk 0:00:27]}  f5 {[%clk 0:00:30]} 30. Ra2 {[%clk 0:00:25]}  Kg8 {[%clk 0:00:26]} 31. Rad2 {[%clk 0:00:22]}  Qxa3 {[%clk 0:00:18]} 32. fxe4 {[%clk 0:00:20]}  fxe4 {[%clk 0:00:19]} 33. Bxa7 {[%clk 0:00:15]}  Rb7 {[%clk 0:00:17]} 34. Be3 {[%clk 0:00:16]}  Bc4 {[%clk 0:00:17]} 35. Nf4 {[%clk 0:00:13]}  Rd7 {[%clk 0:00:16]} 36. Ng2 {[%clk 0:00:11]}  h6 {[%clk 0:00:15]} 37. h3 {[%clk 0:00:11]}  Qc3 {[%clk 0:00:14]} 38. Kh2 {[%clk 0:00:09]}  Kh7 {[%clk 0:00:14]} 39. Bg1 {[%clk 0:00:08]}  g5 {[%clk 0:00:13]} 40. Ne3 {[%clk 0:00:08]}  Bb5 {[%clk 0:00:13]} 41. Nf5 {[%clk 0:00:08]}  Qc7 {[%clk 0:00:12]} 42. Nxg7 {[%clk 0:00:07]}  Kxg7 {[%clk 0:00:12]} 43. Bg2 {[%clk 0:00:06]}  Qe5 {[%clk 0:00:11]} 44. Re2 {[%clk 0:00:06]}  Qf5 {[%clk 0:00:10]} 45. Bxe4 {[%clk 0:00:06]}  Qf6 {[%clk 0:00:09]} 46. Red2 {[%clk 0:00:05]}  Ne5 {[%clk 0:00:09]} 47. Rxd7+ {[%clk 0:00:04]}  Bxd7 {[%clk 0:00:09]} 48. Bd4 {[%clk 0:00:04]}  Bf5 {[%clk 0:00:07]} 49. Rf1 {[%clk 0:00:04]}  Ng4+ {[%clk 0:00:05]} 50. hxg4 {[%clk 0:00:02]}  Qxd4 {[%clk 0:00:06]} 51. Bxf5 {[%clk 0:00:02]}  Qd2+ {[%clk 0:00:07]} 52. Kg1 {[%clk 0:00:02]}  Kf6 {[%clk 0:00:07]} 53. Rf2 {[%clk 0:00:02]}  Qe3 {[%clk 0:00:05]} 54. Kg2 {[%clk 0:00:03]}  Ke5 {[%clk 0:00:06]} 55. Rf3 {[%clk 0:00:04]}  Qe1 {[%clk 0:00:05]} 56. Rf2 {[%clk 0:00:04]}  Kd4 {[%clk 0:00:05]} 57. Rf3 {[%clk 0:00:04]}  Qe2+ {[%clk 0:00:04]} 58. Rf2 {[%clk 0:00:04]}  Qe3 {[%clk 0:00:05]} 59. Rf3 {[%clk 0:00:04]}  Qe2+ {[%clk 0:00:05]} 60. Rf2 {[%clk 0:00:05]}  Qa6 {[%clk 0:00:06]} 61. Rd2+ {[%clk 0:00:05]}  Ke3 {[%clk 0:00:05]} 62. Rc2 {[%clk 0:00:05]}  Qb7+ {[%clk 0:00:04]} 63. Kh3 {[%clk 0:00:05]}  Qh1+ {[%clk 0:00:04]} 64. Rh2 {[%clk 0:00:05]}  Qf1+ {[%clk 0:00:08]} 65. Rg2 {[%clk 0:00:06]}  Kf3 {[%clk 0:00:01]} 66. Be4+ {[%clk 0:00:04]}  Kxe4 {[%clk 0:00:02]} 67. Kh2 {[%clk 0:00:04]}  Kf3 {[%clk 0:00:03]} 68. Rd2 {[%clk 0:00:04]}  Qf2+ {[%clk 0:00:03]} 69. Rxf2+ {[%clk 0:00:04]}  Kxf2 {[%clk 0:00:04]} 70. Kh3 {[%clk 0:00:03]}  Kf3 {[%clk 0:00:04]} 71. Kh2 {[%clk 0:00:04]}  Kxg4 {[%clk 0:00:05]} 72. Kg2 {[%clk 0:00:04]}  h5 {[%clk 0:00:05]} 73. Kh2 {[%clk 0:00:03]}  Kf3 {[%clk 0:00:06]} 74. Kh3 {[%clk 0:00:03]}  g4+ {[%clk 0:00:06]} 75. Kh4 {[%clk 0:00:03]}  Kf2 {[%clk 0:00:07]} 76. Kxh5 {[%clk 0:00:03]}  Kxg3 {[%clk 0:00:08]} 0-1


[Site "https://www.chess.com"]

[Event "Titled Tuesday Blitz October 18 Late 2022"]
[White "Fajdetic, Hrvoje"]
[Black "Poltorak, Sebastian"]
[WhiteFideId "14501945"]
[BlackFideId "1199498"]
[WhiteElo "2172"]
[BlackElo "2232"]
[Result "1-0"]
[Round "04"]
[TimeControl "180+1"]
[Date "2022.10.19"]
[WhiteClock "0:00:13"]
[BlackClock "0:00:03"]

1. d4 {[%clk 0:03:00]}  Nf6 {[%clk 0:02:58]} 2. Bf4 {[%clk 0:03:00]}  b6 {[%clk 0:02:56]} 3. Nc3 {[%clk 0:02:58]}  Bb7 {[%clk 0:02:56]} 4. Qd3 {[%clk 0:02:58]}  d5 {[%clk 0:02:51]} 5. Qh3 {[%clk 0:02:54]}  e6 {[%clk 0:02:49]} 6. e3 {[%clk 0:02:54]}  c5 {[%clk 0:02:48]} 7. Nb5 {[%clk 0:02:49]}  Na6 {[%clk 0:02:48]} 8. c3 {[%clk 0:02:48]}  Rc8 {[%clk 0:02:48]} 9. Nxa7 {[%clk 0:02:47]}  Ra8 {[%clk 0:02:47]} 10. Bb5+ {[%clk 0:02:29]}  Nd7 {[%clk 0:02:45]} 11. Nc6 {[%clk 0:02:28]}  Qc8 {[%clk 0:02:32]} 12. Ne5 {[%clk 0:02:21]}  Nb8 {[%clk 0:02:32]} 13. Ngf3 {[%clk 0:02:13]}  Nc6 {[%clk 0:02:27]} 14. Nxd7 {[%clk 0:02:06]}  Qxd7 {[%clk 0:02:28]} 15. Ne5 {[%clk 0:02:06]}  Qc8 {[%clk 0:02:26]} 16. O-O {[%clk 0:01:40]}  g6 {[%clk 0:02:25]} 17. Bh6 {[%clk 0:01:30]}  Bd6 {[%clk 0:02:08]} 18. Bg7 {[%clk 0:01:26]}  Rg8 {[%clk 0:02:07]} 19. Qxh7 {[%clk 0:01:25]}  Ke7 {[%clk 0:02:07]} 20. Nxf7 {[%clk 0:01:18]}  Qb8 {[%clk 0:00:12]} 21. Bxc6 {[%clk 0:01:12]}  Bxh2+ {[%clk 0:00:12]} 22. Kh1 {[%clk 0:01:06]}  Bxc6 {[%clk 0:00:13]} 23. Ne5 {[%clk 0:01:02]}  Kd6 {[%clk 0:00:10]} 24. Kxh2 {[%clk 0:00:56]}  Ra7 {[%clk 0:00:10]} 25. Kg1 {[%clk 0:00:16]}  Raxg7 {[%clk 0:00:09]} 26. Qh2 {[%clk 0:00:16]}  Bb5 {[%clk 0:00:05]} 27. c4 {[%clk 0:00:15]}  Ba6 {[%clk 0:00:04]} 28. dxc5+ {[%clk 0:00:13]}  Kxc5 {[%clk 0:00:03]} 29. Rfc1 {[%clk 0:00:13]}  Rh8 {[%clk 0:00:02]} 30. Qg3 {[%clk 0:00:12]}  Rgh7 {[%clk 0:00:02]} 31. f3 {[%clk 0:00:11]}  Rh1+ {[%clk 0:00:01]} 32. Kf2 {[%clk 0:00:12]}  Rxc1 {[%clk 0:00:02]} 33. Rxc1 {[%clk 0:00:12]}  Bxc4 {[%clk 0:00:03]} 34. b3 {[%clk 0:00:12]}  b5 {[%clk 0:00:02]} 35. bxc4 {[%clk 0:00:12]}  bxc4 {[%clk 0:00:03]} 36. Nd7+ {[%clk 0:00:13]} 1-0


[Site "https://www.chess.com"]

[Event "Titled Tuesday Blitz October 18 Late 2022"]
[White "Fedoseev, Vladimir"]
[Black "Gorodetzky, David"]
[WhiteFideId "24130737"]
[BlackFideId "2813416"]
[WhiteElo "2726"]
[BlackElo "2487"]
[Result "0-1"]
[Round "04"]
[TimeControl "180+1"]
[Date "2022.10.18"]
[WhiteClock "0:00:05"]
[BlackClock "0:00:21"]

1. d4 {[%clk 0:02:45]}  Nf6 {[%clk 0:02:59]} 2. c4 {[%clk 0:02:44]}  e6 {[%clk 0:02:59]} 3. Nc3 {[%clk 0:02:44]}  Bb4 {[%clk 0:02:59]} 4. e3 {[%clk 0:02:43]}  O-O {[%clk 0:02:58]} 5. Bd2 {[%clk 0:02:42]}  b6 {[%clk 0:02:55]} 6. Nge2 {[%clk 0:02:39]}  Bb7 {[%clk 0:02:54]} 7. a3 {[%clk 0:02:37]}  Be7 {[%clk 0:02:55]} 8. Ng3 {[%clk 0:02:36]}  c5 {[%clk 0:02:54]} 9. d5 {[%clk 0:02:17]}  d6 {[%clk 0:02:38]} 10. e4 {[%clk 0:02:14]}  Re8 {[%clk 0:02:37]} 11. Be2 {[%clk 0:02:12]}  Nbd7 {[%clk 0:02:26]} 12. O-O {[%clk 0:02:11]}  Bf8 {[%clk 0:02:25]} 13. f4 {[%clk 0:02:06]}  a6 {[%clk 0:02:25]} 14. a4 {[%clk 0:01:58]}  g6 {[%clk 0:02:25]} 15. e5 {[%clk 0:01:50]}  dxe5 {[%clk 0:02:19]} 16. fxe5 {[%clk 0:01:51]}  Nxe5 {[%clk 0:02:20]} 17. Bg5 {[%clk 0:01:51]}  Ned7 {[%clk 0:02:11]} 18. Nge4 {[%clk 0:01:44]}  Bg7 {[%clk 0:02:10]} 19. Nd6 {[%clk 0:01:44]}  Qc7 {[%clk 0:01:09]} 20. Bf4 {[%clk 0:01:42]}  Rf8 {[%clk 0:00:58]} 21. dxe6 {[%clk 0:01:33]}  fxe6 {[%clk 0:00:52]} 22. Nxb7 {[%clk 0:01:33]}  e5 {[%clk 0:00:52]} 23. Bg5 {[%clk 0:00:49]}  Qxb7 {[%clk 0:00:50]} 24. Qd6 {[%clk 0:00:46]}  Rae8 {[%clk 0:00:48]} 25. Rad1 {[%clk 0:00:39]}  e4 {[%clk 0:00:46]} 26. h3 {[%clk 0:00:32]}  e3 {[%clk 0:00:30]} 27. Bf3 {[%clk 0:00:23]}  Qc8 {[%clk 0:00:30]} 28. Nd5 {[%clk 0:00:09]}  e2 {[%clk 0:00:25]} 29. Bxe2 {[%clk 0:00:09]}  Rxe2 {[%clk 0:00:24]} 30. Bxf6 {[%clk 0:00:09]}  Nxf6 {[%clk 0:00:22]} 31. Nxf6+ {[%clk 0:00:09]}  Kh8 {[%clk 0:00:22]} 32. b3 {[%clk 0:00:05]}  Re6 {[%clk 0:00:21]} 0-1


[Site "https://www.chess.com"]